bitfinex/quotes_SOLUSD_20241202
["timestamp","ask_amount","ask_price","bid_price","bid_amount"]
[1733145913461,0.25098,224.91,224.89,0.71633107]
[1733145913662,13.05973036,224.9,224.89,0.71633107]
[1733145915357,13.05973036,224.91,224.89,0.71633107]
[1733145916954,13.05973036,224.9,224.89,0.71633107]
[1733145918936,14.17103036,224.95,224.89,0.71633107]
[1733145918937,13.05973036,224.91,224.89,0.71633107]
[1733145919943,13.05973036,224.9,224.89,0.71633107]
[1733145921051,0.12549,224.94,224.89,0.71633107]
[1733145921052,13.05973036,224.91,224.89,0.71633107]
[1733145922055,13.18522036,224.9,224.89,0.71633107]
[1733145923161,20.0,224.88,224.87,0.1186069]
[1733145923330,33.05973036,224.88,224.87,0.1186069]
[1733145923533,33.43620036,224.88,224.87,0.1186069]
[1733145923730,33.43620036,224.88,224.87,0.83493797]
[1733145924143,33.43620036,224.88,224.87,0.1186069]
[1733145924756,57.21308436,224.88,224.87,6.9e-06]
[1733145924955,0.12549,224.81,224.77,0.71633107]
[1733145925160,0.12549,224.81,224.8,0.71633107]
[1733145925351,0.12549,224.8,224.78,0.71633107]
[1733145925858,13.05973036,224.79,224.78,0.71633107]
[1733145926258,13.05973036,224.81,224.78,0.71633107]
[1733145926467,13.05973036,224.81,224.8,0.71633107]
[1733145926654,13.05973036,224.82,224.8,0.71633107]
[1733145927155,13.05973036,224.84,224.82,0.71633107]
[1733145927366,20.94083036,224.95,224.84,0.71633107]
[1733145927674,0.25098,224.9,224.85,0.71633107]
[1733145928257,1.1116,224.89,224.85,0.71633107]
[1733145928438,13.31071036,224.86,224.85,0.71633107]
[1733145929358,13.05973036,224.86,224.85,0.71633107]
[1733145930361,13.05973036,224.87,224.85,0.71633107]
[1733145930564,13.05973036,224.89,224.87,0.71633107]
[1733145931058,13.05973036,224.9,224.87,0.71633107]
[1733145931259,13.05973036,224.9,224.83,26.10973036]
[1733145931260,13.05973036,224.93,224.91,0.71633107]
[1733145931660,13.05973036,224.92,224.91,0.71633107]
[1733145932760,0.25098,224.96,224.95,0.71633107]
[1733145932967,13.31071036,224.96,224.95,0.71633107]
[1733145933181,13.31071036,224.96,224.91,0.71633107]
[1733145933363,13.31071036,224.96,224.95,0.71633107]
[1733145933547,0.25098,224.94,224.92,0.71633107]
[1733145934247,13.18522036,224.93,224.92,0.71633107]
[1733145934451,13.31071036,224.93,224.92,0.71633107]
[1733145935970,20.0,224.98,224.92,0.71633107]
[1733145935971,13.05973036,224.94,224.92,0.71633107]
[1733145936962,13.05973036,224.95,224.92,0.71633107]
[1733145937471,13.05973036,224.94,224.92,0.71633107]
[1733145939166,13.05973036,224.93,224.92,0.71633107]
[1733145939875,20.0,224.91,224.9,0.71633107]
[1733145940175,33.05973036,224.91,224.9,0.71633107]
[1733145942565,13.05973036,224.91,224.9,0.71633107]
[1733145943872,14.42221036,224.91,224.9,0.71633107]
[1733145944271,0.12549,224.9,224.88,0.71633107]
[1733145944461,13.05973036,224.89,224.88,0.71633107]
[1733145944658,0.37647,224.88,224.86,0.71633107]
[1733145944861,13.31071036,224.87,224.86,0.71633107]
[1733145945992,0.25098,224.83,224.81,0.71633107]
[1733145946164,13.05973036,224.82,224.81,0.71633107]
[1733145947062,137.4233,224.89,224.83,0.71633107]
[1733145947063,135.2,224.89,224.83,0.71633107]
[1733145947265,13.05973036,224.86,224.85,0.71633107]
[1733145947479,13.05973036,224.89,224.87,0.71633107]
[1733145947685,13.05973036,224.88,224.87,0.71633107]
[1733145949471,13.05973036,224.89,224.87,0.71633107]
[1733145950062,13.05973036,224.91,224.89,0.71633107]
[1733145951183,13.05973036,224.94,224.92,0.71633107]
[1733145951966,13.05973036,224.93,224.92,0.71633107]
[1733145956190,13.05973036,224.94,224.92,0.71633107]
[1733145957967,13.05973036,224.95,224.94,0.71633107]
[1733145958992,13.05973036,224.96,224.94,0.71633107]
[1733145959293,1.111,225.01,225.0,0.71633107]
[1733145959481,1.23649,225.01,225.0,0.71633107]
[1733145960294,1.36198,225.01,225.0,0.71633107]
[1733145960470,14.42171036,225.01,224.98,0.71633107]
[1733145960675,14.54730036,224.99,224.98,0.71633107]
[1733145961066,20.0,225.02,225.01,0.71633107]
[1733145961271,1.111,225.03,225.01,0.71633107]
[1733145961474,13.05973036,225.02,225.01,0.71633107]
[1733145962189,13.05973036,225.02,224.93,32.532]
[1733145962190,0.25098,225.01,224.97,0.71633107]
[1733145962397,13.05973036,224.98,224.97,0.71633107]
[1733145963273,13.31071036,224.98,224.97,0.71633107]
[1733145964777,14.42191036,224.98,224.97,0.71633107]
[1733145964979,0.12077969,225.11,225.1,0.71633107]
[1733145965191,0.12077969,225.11,225.1,14.66197384]
[1733145965503,0.12077969,225.11,225.1,19.11197384]
[1733145965798,0.12077969,225.11,225.1,14.66197384]
[1733145965979,0.12077969,225.11,225.1,19.66197384]
[1733145966791,0.12077969,225.11,225.1,43.43885784]
[1733145967000,13.05973036,225.25,225.24,0.71633107]
[1733145968170,13.05973036,225.26,225.24,0.71633107]
[1733145968373,13.05973036,225.25,225.24,0.71633107]
[1733145968573,13.05973036,225.25,225.22,0.71633107]
[1733145968794,13.05973036,225.23,225.22,0.71633107]
[1733145969299,13.05973036,225.23,225.21,0.71633107]
[1733145969483,13.31071036,225.22,225.21,0.71633107]
[1733145969682,0.12549,225.21,225.19,0.71633107]
[1733145969985,13.31071036,225.2,225.19,0.71633107]
[1733145970577,0.37647,225.19,225.17,0.71633107]
[1733145970770,0.37647,225.17,225.13,0.71633107]
[1733145970973,13.05973036,225.14,225.13,0.71633107]
[1733145971679,13.05973036,225.14,225.07,4.45]
[1733145971680,0.12549,225.13,225.11,0.71633107]
[1733145972002,13.05973036,225.12,225.11,0.71633107]
[1733145974486,13.05973036,225.12,225.02,13.05973036]
[1733145974487,0.25098,225.11,225.09,0.71633107]
[1733145974693,13.05973036,225.1,225.07,0.71633107]
[1733145975003,1.1104,225.13,225.12,0.71633107]
[1733145975004,1.23589,225.13,225.12,0.71633107]
[1733145975509,20.0,225.14,225.12,0.71633107]
[1733145976079,13.05973036,225.14,225.12,0.71633107]
[1733145976492,13.05973036,225.13,225.12,0.71633107]
[1733145978184,13.05973036,225.16,225.15,0.71633107]
[1733145978498,13.05973036,225.17,225.15,0.71633107]
[1733145978680,13.05973036,225.16,225.15,0.71633107]
[1733145980407,13.31071036,225.16,225.15,0.71633107]
[1733145980583,0.12549,225.15,225.13,0.71633107]
[1733145980782,13.05973036,225.14,225.13,0.71633107]
[1733145982182,13.05973036,225.15,225.13,0.71633107]
[1733145982381,13.05973036,225.14,225.13,0.71633107]
[1733145986109,13.05973036,225.17,225.15,0.71633107]
[1733145986612,13.05973036,225.16,225.15,0.71633107]
[1733145986789,13.18522036,225.16,225.15,0.71633107]
[1733145987890,0.12549,225.15,225.13,0.71633107]
[1733145988111,0.12549,225.13,225.11,0.71633107]
[1733145988403,13.18522036,225.12,225.11,0.71633107]
[1733145989186,0.25098,225.11,225.07,0.71633107]
[1733145989389,0.25098,225.11,225.1,0.71633107]
[1733145989697,0.25098,225.11,225.08,0.71633107]
[1733145989900,0.25098,225.11,225.02,13.05973036]
[1733145989901,0.25098,225.11,225.1,0.71633107]
[1733145990103,13.31071036,225.11,225.1,0.71633107]
[1733145994497,13.18522036,225.11,225.1,0.71633107]
[1733145997420,13.05973036,225.11,225.1,0.71633107]
[1733145998093,13.05973036,225.14,225.13,0.71633107]
[1733145998899,13.05973036,225.16,225.13,0.71633107]
[1733145999102,13.05973036,225.16,225.15,0.71633107]
[1733145999304,13.05973036,225.17,225.15,0.71633107]
[1733145999505,13.05973036,225.18,225.17,0.71633107]
[1733145999903,13.05973036,225.19,225.17,0.71633107]
[1733146000103,13.05973036,225.2,225.19,0.71633107]
[1733146013911,1.1099,225.24,225.23,0.71633107]
[1733146014111,14.16963036,225.24,225.23,0.71633107]
[1733146015399,13.05973036,225.24,225.23,0.71633107]
[1733146021614,8.33992491,225.24,225.23,0.71633107]
[1733146022924,34.46939964,225.28,225.26,0.71633107]
[1733146022925,0.25098,225.27,225.26,0.71633107]
[1733146023133,0.25098,225.27,225.22,0.71633107]
[1733146023134,20.25098,225.24,225.22,0.71633107]
[1733146023431,0.25098,225.22,225.21,0.71633107]
[1733146023929,8.59090491,225.22,225.21,0.71633107]
[1733146024136,9.70090491,225.22,225.21,0.71633107]
[1733146032934,9.70090491,225.22,225.16,0.71633107]
[1733146033115,41.82511455,225.17,225.16,0.71633107]
[1733146033316,41.95060455,225.17,225.16,0.71633107]
[1733146033543,0.12549,225.16,225.14,0.71633107]
[1733146033713,8.46541491,225.15,225.14,0.71633107]
[1733146035135,0.12549,225.14,225.12,0.71633107]
[1733146035432,8.46541491,225.13,225.12,0.71633107]
[1733146038829,33.35969964,225.17,225.12,0.71633107]
[1733146039023,1.1101,225.2,225.17,0.71633107]
[1733146039222,8.33992491,225.18,225.15,0.71633107]
[1733146039437,0.25098,225.19,225.15,0.71633107]
[1733146039733,0.25098,225.19,225.17,0.71633107]
[1733146039930,0.25098,225.19,225.15,0.71633107]
[1733146040134,8.59090491,225.16,225.15,0.71633107]
[1733146040932,0.12549,225.16,225.15,0.71633107]
[1733146041112,20.0,225.19,225.18,0.71633107]
[1733146041311,28.33992491,225.19,225.18,0.71633107]
[1733146041528,28.46541491,225.19,225.18,0.71633107]
[1733146041930,28.59090491,225.19,225.18,0.71633107]
[1733146042332,0.12549,225.18,225.16,0.71633107]
[1733146042538,0.25098,225.16,225.11,0.71633107]
[1733146042830,8.33992491,225.12,225.11,0.71633107]
[1733146043825,8.46541491,225.12,225.11,0.71633107]
[1733146044428,8.59090491,225.12,225.11,0.71633107]
[1733146045614,0.25098,225.12,225.11,0.71633107]
[1733146046035,20.0,225.14,225.13,0.71633107]
[1733146046235,28.33992491,225.14,225.13,0.71633107]
[1733146046446,28.46541491,225.14,225.13,0.71633107]
[1733146047638,28.59090491,225.14,225.13,0.71633107]
[1733146047845,1.48687,225.13,225.12,0.71633107]
[1733146048022,9.82679491,225.13,225.12,0.71633107]
[1733146049130,20.25098,225.11,225.1,0.71633107]
[1733146049336,28.59090491,225.11,225.1,0.71633107]
[1733146050242,135.2,225.16,225.12,0.71633107]
[1733146050243,1.1103,225.16,225.12,0.71633107]
[1733146050445,8.33992491,225.13,225.12,0.71633107]
[1733146050624,8.46541491,225.13,225.12,0.71633107]
[1733146056627,8.59090491,225.13,225.12,0.71633107]
[1733146057536,0.25098,225.13,225.12,0.71633107]
[1733146057851,8.46541491,225.13,225.12,0.71633107]
[1733146058353,1.11,225.22,225.18,0.71633107]
[1733146058525,1.11,225.22,225.21,0.71633107]
[1733146058832,9.44992491,225.22,225.21,0.71633107]
[1733146059556,9.70090491,225.22,225.21,0.71633107]
[1733146059759,9.82639491,225.22,225.21,0.71633107]
[1733146060554,29.82639491,225.22,225.21,0.71633107]
[1733146061054,29.57541491,225.22,225.21,0.71633107]
[1733146061352,28.33992491,225.22,225.21,0.71633107]
[1733146061724,8.46541491,225.22,225.21,0.71633107]
[1733146062147,0.12549,225.22,225.21,0.71633107]
[1733146062455,8.46541491,225.22,225.21,0.71633107]
[1733146063846,20.12549,225.22,225.21,0.71633107]
[1733146064237,8.46541491,225.22,225.21,0.71633107]
[1733146065347,20.0,225.25,225.24,0.71633107]
[1733146065647,28.33992491,225.25,225.24,0.71633107]
[1733146066239,28.46541491,225.25,225.24,0.71633107]
[1733146068358,28.46541491,225.25,225.11,44.92760502]
[1733146068359,176.65138,225.24,225.11,0.88600502]
[1733146068569,0.12549,225.11,224.99,5.0]
[1733146068737,8.33992491,225.09,225.01,30.8156]
[1733146069061,8.33992491,225.08,225.01,30.8156]
[1733146069430,8.46541491,225.1,225.02,8.33992491]
[1733146069843,0.886,225.09,225.02,8.33992491]
[1733146070152,9.22592491,225.09,225.01,30.8156]
[1733146070534,8.33992491,225.07,225.01,30.8156]
[1733146070743,8.33992491,225.05,225.01,30.8156]
[1733146072057,8.33992491,225.02,225.01,30.8156]
[1733146072361,8.33992491,225.02,224.95,32.7939]
[1733146072568,8.33992491,224.98,224.95,45.9297]
[1733146073451,8.33992491,224.99,224.95,45.9297]
[1733146073968,1.01149,225.04,224.95,45.9297]
[1733146073969,8.33992491,224.97,224.95,45.9297]
[1733146074155,8.33992491,224.96,224.95,13.1358]
[1733146074549,8.33992491,224.96,224.9,44.8279]
[1733146074755,8.33992491,224.94,224.9,44.8279]
[1733146074958,8.33992491,224.93,224.9,44.8279]
[1733146075760,13.06399019,224.93,224.9,44.8279]
[1733146077452,0.12549,225.0,224.9,57.89189019]
[1733146077745,13.94999019,224.99,224.92,13.06399019]
[1733146078445,13.06399019,225.01,224.95,13.06399019]
[1733146078847,13.06399019,225.02,224.95,13.06399019]
[1733146079071,0.886,225.06,224.98,13.06399019]
[1733146079360,13.06399019,225.05,224.98,13.06399019]
[1733146079979,13.94999019,225.04,224.98,13.06399019]
[1733146080260,13.94999019,225.04,224.97,13.06399019]
[1733146080461,13.06399019,225.04,224.98,13.06399019]
[1733146081046,0.886,225.03,224.97,13.06399019]
[1733146081445,13.06399019,225.04,224.97,13.06399019]
[1733146082163,13.06399019,225.06,224.99,13.06399019]
[1733146082363,0.886,225.09,225.03,13.06399019]
[1733146082544,13.06399019,225.12,225.05,13.06399019]
[1733146082854,13.94999019,225.11,225.04,13.06399019]
[1733146083664,13.06399019,225.12,225.04,13.06399019]
[1733146083861,13.06399019,225.11,225.04,13.06399019]
[1733146084067,13.94999019,225.11,225.04,13.06399019]
[1733146084258,13.06399019,225.14,225.07,13.06399019]
[1733146084571,13.06399019,225.15,225.08,13.06399019]
[1733146087671,13.06399019,225.14,225.06,18.06399019]
[1733146089072,13.06399019,225.14,225.07,13.06399019]
[1733146089675,13.06399019,225.12,225.04,5.0]
[1733146089966,13.06399019,225.11,225.04,18.06399019]
[1733146090169,13.06399019,225.13,225.05,13.06399019]
[1733146090371,13.06399019,225.13,225.06,36.84087419]
[1733146090562,13.06399019,225.13,225.06,23.776884]
[1733146090873,13.06399019,225.13,225.06,36.84087419]
[1733146091675,13.06399019,225.13,225.05,18.06399019]
[1733146091853,2.12159,225.2,225.05,13.06399019]
[1733146091854,13.94999019,225.12,225.05,13.06399019]
[1733146092253,13.06399019,225.13,225.05,13.06399019]
[1733146092670,13.94999019,225.12,225.05,13.06399019]
[1733146092982,13.06399019,225.08,225.01,30.3606]
[1733146093473,13.06399019,225.1,225.03,13.06399019]
[1733146093966,13.06399019,225.09,225.02,13.06399019]
[1733146095369,13.06399019,225.1,225.03,13.06399019]
[1733146096463,13.06399019,225.09,225.02,13.06399019]
[1733146097283,13.06399019,225.09,225.01,30.3606]
[1733146097284,21.01149,225.15,225.03,13.06399019]
[1733146097581,13.06399019,225.13,225.06,13.06399019]
[1733146098182,13.06399019,225.14,225.07,13.06399019]
[1733146098383,13.06399019,225.12,225.05,13.06399019]
[1733146098586,13.06399019,225.09,225.02,13.06399019]
[1733146098895,13.06399019,225.08,225.02,0.43037167]
[1733146099059,13.06399019,225.09,225.02,13.49436186]
[1733146100280,13.06399019,225.1,225.03,13.06399019]
[1733146101087,13.06399019,225.08,225.02,0.43037167]
[1733146102190,13.06399019,225.07,225.02,0.43037167]
[1733146102688,13.06399019,225.04,225.02,0.43037167]
[1733146103294,13.06399019,225.03,225.02,0.43037167]
[1733146105198,13.06399019,225.04,225.02,0.43037167]
[1733146107189,13.94999019,225.03,225.02,0.43037167]
[1733146107401,14.07548019,225.03,225.02,0.43037167]
[1733146107777,14.20097019,225.03,225.02,0.43037167]
[1733146107975,14.32646019,225.03,225.02,0.43037167]
[1733146110290,1.26247,225.03,225.02,0.43037167]
[1733146110486,34.07548019,225.03,225.02,0.43037167]
[1733146111293,34.20097019,225.03,225.02,0.43037167]
[1733146111491,34.32646019,225.03,225.02,0.43037167]
[1733146112192,34.23344049,225.03,225.02,0.43037167]
[1733146113872,58.01032449,225.03,225.02,0.43037167]
[1733146114622,0.12549,224.98,224.91,99.99998789]
[1733146114898,0.12549,224.94,224.91,99.99998789]
[1733146115696,0.12549,224.95,224.91,99.99998789]
[1733146116401,13.18948019,224.95,224.91,99.99998789]
[1733146116596,0.6999606,224.94,224.91,99.99998789]
[1733146117070,0.12549,224.95,224.91,99.99998789]
[1733146117273,0.8254506,224.95,224.91,99.99998789]
[1733146117489,0.12549,224.95,224.91,99.99998789]
[1733146117685,0.6999606,224.96,224.91,99.99998789]
[1733146118002,13.06399019,224.97,224.91,99.99998789]
[1733146118181,0.6999606,224.96,224.91,99.99998789]
[1733146118501,13.06399019,224.95,224.91,99.99998789]
[1733146118702,13.76395079,224.94,224.91,99.99998789]
[1733146119176,13.06399019,224.93,224.91,99.99998789]
[1733146119581,8.36134249,224.93,224.91,99.99998789]
[1733146121302,8.36134249,224.94,224.91,99.99998789]
[1733146121501,8.48683249,224.92,224.91,99.99998789]
[1733146121881,0.12549,224.92,224.91,99.99998789]
[1733146122401,8.48683249,224.92,224.91,99.99998789]
[1733146122782,0.12549,224.92,224.91,99.99998789]
[1733146122979,8.36134249,224.95,224.91,99.99998789]
[1733146123187,0.6999606,224.98,224.93,8.36134249]
[1733146123390,8.36134249,225.02,224.95,8.36134249]
[1733146123587,0.6999606,225.01,224.96,8.36134249]
[1733146123906,1.1108,225.06,224.92,4.45]
[1733146124204,8.36134249,225.02,224.95,8.36134249]
[1733146124504,0.6999606,225.01,224.91,99.99998789]
[1733146124710,8.36134249,224.99,224.92,8.36134249]
[1733146124901,0.12549,224.97,224.92,8.36134249]
[1733146125199,0.12549,224.97,224.91,99.99998789]
[1733146125410,0.12549,224.97,224.92,8.36134249]
[1733146125592,0.12549,224.97,224.92,13.05706645]
[1733146126296,0.12549,224.97,224.91,113.05705434]
[1733146126495,0.6999606,224.98,224.95,13.05706645]
[1733146126706,13.05706645,225.08,224.98,4.45]
[1733146127009,0.7929803,225.07,225.01,13.05706645]
[1733146127206,0.7929803,225.14,225.05,13.05706645]
[1733146127505,13.05706645,225.12,225.05,13.05706645]
[1733146127722,30.673,225.17,225.05,4.45]
[1733146127723,0.25098,225.1,225.05,4.45]
[1733146128078,13.85004675,225.11,225.05,4.45]
[1733146128508,0.25098,225.1,225.05,4.45]
[1733146128690,13.05706645,225.13,225.06,13.05706645]
[1733146128884,13.05706645,225.14,225.07,13.05706645]
[1733146129101,0.7929803,225.13,225.07,13.05706645]
[1733146129298,0.12549,225.12,225.07,13.05706645]
[1733146129497,13.18255645,225.12,225.05,17.50706645]
[1733146129912,13.05706645,225.12,225.05,17.50706645]
[1733146130097,13.05706645,225.1,225.03,13.05706645]
[1733146130606,0.12549,225.1,225.04,13.05706645]
[1733146131189,0.12549,225.1,225.01,0.88630512]
[1733146131190,13.18255645,225.09,225.02,13.05706645]
[1733146131401,0.7929803,225.08,225.02,13.05706645]
[1733146131605,13.18255645,225.09,225.02,13.05706645]
[1733146131902,13.05706645,225.06,224.99,58.98476645]
[1733146132107,0.12549,225.05,224.99,58.98476645]
[1733146132606,13.05706645,225.06,224.99,58.98476645]
[1733146133312,0.25098,225.12,225.03,13.05706645]
[1733146133612,13.05706645,225.14,225.07,13.05706645]
[1733146133903,0.12549,225.13,225.07,13.05706645]
[1733146134121,0.9184703,225.13,225.07,13.05706645]
[1733146134898,13.97553675,225.13,225.06,13.05706645]
[1733146135091,13.97553675,225.13,225.07,13.05706645]
[1733146135092,0.9184703,225.13,225.07,13.05706645]
[1733146135315,13.05706645,225.15,225.08,13.05706645]
[1733146135620,13.85004675,225.14,225.07,13.05706645]
[1733146136315,13.30804645,225.15,225.08,13.05706645]
[1733146136618,0.7929803,225.19,225.13,13.05706645]
[1733146136926,13.05706645,225.23,225.15,13.05706645]
[1733146137110,13.05706645,225.19,225.12,13.05706645]
[1733146137426,13.05706645,225.18,225.11,13.05706645]
[1733146138105,13.05706645,225.19,225.12,13.05706645]
[1733146138929,13.05706645,225.2,225.14,13.05706645]
[1733146139296,13.05706645,225.2,225.13,13.05706645]
[1733146139492,13.05706645,225.19,225.12,13.05706645]
[1733146140597,13.05706645,225.19,225.13,17.50706645]
[1733146141006,13.05706645,225.21,225.14,13.05706645]
[1733146141402,13.05706645,225.2,225.14,13.05706645]
[1733146141820,13.05706645,225.2,225.11,5.33589234]
[1733146141821,13.05706645,225.19,225.13,13.05706645]
[1733146142124,13.05706645,225.2,225.13,13.05706645]
[1733146142331,13.05706645,225.22,225.16,13.05706645]
[1733146142530,13.85004675,225.24,225.17,13.05706645]
[1733146142705,13.05706645,225.26,225.19,13.05706645]
[1733146142906,0.7929803,225.29,225.23,13.05706645]
[1733146143118,1.3214551,225.31,225.24,13.05706645]
[1733146143316,13.05706645,225.3,225.24,13.05706645]
[1733146143519,13.85004675,225.29,225.23,17.50706645]
[1733146144205,13.85004675,225.29,225.19,0.88553888]
[1733146144405,13.05706645,225.26,225.2,17.50706645]
[1733146144607,13.05706645,225.27,225.2,17.50706645]
[1733146144825,13.05706645,225.26,225.2,17.50706645]
[1733146145414,13.05706645,225.26,225.2,13.05706645]
[1733146145605,13.05706645,225.24,225.18,13.05706645]
[1733146145801,13.05706645,225.22,225.15,13.05706645]
[1733146146108,13.05706645,225.21,225.15,13.05706645]
[1733146146424,13.05706645,225.19,225.14,42.8751]
[1733146146622,135.2,225.27,225.14,42.8751]
[1733146146623,13.05706645,225.18,225.14,42.8751]
[1733146147125,0.7929803,225.26,225.14,42.8751]
[1733146147126,13.05706645,225.19,225.14,42.8751]
[1733146147330,13.05706645,225.18,225.11,13.05706645]
[1733146148127,13.05706645,225.19,225.12,13.05706645]
[1733146148335,13.05706645,225.18,225.11,13.05706645]
[1733146148508,13.05706645,225.16,225.09,56.50616645]
[1733146149016,13.05706645,225.21,225.14,13.05706645]
[1733146149618,13.05706645,225.2,225.13,13.05706645]
[1733146150927,13.05706645,225.21,225.14,13.05706645]
[1733146151134,13.05706645,225.24,225.18,13.05706645]
[1733146151533,13.05706645,225.26,225.19,13.05706645]
[1733146151840,13.05706645,225.28,225.21,13.05706645]
[1733146152043,13.05706645,225.28,225.22,13.05706645]
[1733146152340,13.05706645,225.28,225.21,13.05706645]
[1733146153740,13.05706645,225.29,225.22,13.05706645]
[1733146153925,13.05706645,225.28,225.21,13.05706645]
[1733146155436,13.05706645,225.28,225.17,0.8856696]
[1733146155639,13.05706645,225.28,225.21,13.05706645]
[1733146155843,13.05706645,225.29,225.23,13.05706645]
[1733146156140,13.05706645,225.29,225.19,54.3909]
[1733146156141,13.05706645,225.28,225.22,13.05706645]
[1733146157548,13.05706645,225.29,225.22,13.05706645]
[1733146159041,13.05706645,225.28,225.22,13.05706645]
[1733146160640,13.05706645,225.25,225.19,43.2892]
[1733146160866,13.05706645,225.22,225.16,13.05706645]
[1733146161028,13.05706645,225.22,225.15,13.05706645]
[1733146161418,13.05706645,225.22,225.16,13.05706645]
[1733146162322,13.05706645,225.24,225.17,13.05706645]
[1733146163620,13.05706645,225.26,225.2,13.05706645]
[1733146163836,13.05706645,225.27,225.21,13.05706645]
[1733146164521,13.05706645,225.28,225.21,13.05706645]
[1733146171451,13.05706645,225.27,225.21,13.05706645]
[1733146171652,13.05706645,225.27,225.2,13.05706645]
[1733146172177,13.05706645,225.27,225.21,13.05706645]
[1733146172531,13.05706645,225.29,225.22,13.05706645]
[1733146172956,13.05706645,225.29,225.23,13.05706645]
[1733146173634,13.05706645,225.29,225.22,13.05706645]
[1733146174254,13.05706645,225.29,225.23,13.05706645]
[1733146175455,13.05706645,225.24,225.13,4.45]
[1733146175659,13.05706645,225.22,225.16,13.05706645]
[1733146175958,13.05706645,225.24,225.17,13.05706645]
[1733146176947,1.0439603,225.3,225.13,4.45]
[1733146176948,13.05706645,225.25,225.18,13.05706645]
[1733146177332,13.05706645,225.25,225.19,13.05706645]
[1733146177742,13.05706645,225.26,225.19,13.05706645]
[1733146179934,13.05706645,225.28,225.21,13.05706645]
[1733146180136,0.7929803,225.27,225.21,13.05706645]
[1733146180766,13.85004675,225.27,225.2,13.05706645]
[1733146181255,13.05706645,225.26,225.19,13.05706645]
[1733146181461,13.85004675,225.25,225.18,13.05706645]
[1733146181769,13.05706645,225.23,225.16,13.05706645]
[1733146181943,0.7929803,225.22,225.17,13.05706645]
[1733146182265,0.7929803,225.22,225.15,13.05706645]
[1733146182266,13.05706645,225.22,225.15,13.05706645]
[1733146182444,13.05706645,225.2,225.14,13.05706645]
[1733146182644,13.85004675,225.19,225.12,13.05706645]
[1733146182867,13.85004675,225.19,225.09,44.3788]
[1733146182868,13.05706645,225.18,225.11,13.05706645]
[1733146183042,0.7929803,225.17,225.11,13.05706645]
[1733146183645,13.05706645,225.16,225.1,13.05706645]
[1733146183845,0.7929803,225.15,225.1,13.05706645]
[1733146184141,13.85004675,225.15,225.08,13.05706645]
[1733146184747,0.7929803,225.15,225.1,13.05706645]
[1733146184963,0.7929803,225.15,225.11,13.05706645]
[1733146185260,0.7929803,225.16,225.11,13.05706645]
[1733146185561,0.7929803,225.16,225.1,13.05706645]
[1733146186271,1.1101,225.19,225.13,13.05706645]
[1733146186272,0.7929803,225.19,225.13,13.05706645]
[1733146186765,0.7929803,225.19,225.14,13.05706645]
[1733146186959,13.05706645,225.18,225.12,13.05706645]
[1733146187141,0.7929803,225.17,225.12,13.05706645]
[1733146187459,135.9929803,225.23,225.15,13.05706645]
[1733146187673,13.05706645,225.21,225.15,13.05706645]
[1733146187971,0.7929803,225.2,225.15,13.05706645]
[1733146188155,13.05706645,225.24,225.18,13.05706645]
[1733146188468,0.7929803,225.24,225.2,13.05706645]
[1733146188968,0.7929803,225.24,225.19,13.05706645]
[1733146189338,0.7929803,225.24,225.18,13.05706645]
[1733146189738,13.05706645,225.22,225.15,13.05706645]
[1733146189956,13.05706645,225.19,225.12,13.05706645]
[1733146190154,0.7929803,225.18,225.12,13.05706645]
[1733146190643,0.7929803,225.18,225.13,13.05706645]
[1733146191146,13.05706645,225.2,225.13,13.05706645]
[1733146191147,0.9184703,225.19,225.13,13.05706645]
[1733146191966,0.7929803,225.19,225.14,13.05706645]
[1733146192353,0.7929803,225.2,225.14,13.05706645]
[1733146192765,0.7929803,225.2,225.15,13.05706645]
[1733146192967,0.7929803,225.21,225.16,13.05706645]
[1733146193144,0.7929803,225.21,225.15,13.05706645]
[1733146193338,0.7929803,225.21,225.09,0.88596691]
[1733146193339,13.85004675,225.21,225.14,13.05706645]
[1733146193566,13.85004675,225.21,225.13,13.05706645]
[1733146193567,13.05706645,225.2,225.13,13.05706645]
[1733146193770,0.7929803,225.19,225.13,13.05706645]
[1733146193950,13.85004675,225.19,225.12,13.05706645]
[1733146194446,13.05706645,225.17,225.1,13.05706645]
[1733146194643,13.85004675,225.16,225.09,13.05706645]
[1733146194863,0.7929803,225.16,225.11,13.05706645]
[1733146195456,0.7929803,225.16,225.1,13.05706645]
[1733146195748,0.7929803,225.21,225.15,13.05706645]
[1733146195969,20.0,225.22,225.19,13.05706645]
[1733146195970,0.7929803,225.22,225.19,13.05706645]
[1733146196164,0.7929803,225.24,225.2,13.05706645]
[1733146198471,0.7929803,225.26,225.22,13.05706645]
[1733146198769,0.7929803,225.26,225.21,13.05706645]
[1733146199145,0.7929803,225.26,225.2,13.05706645]
[1733146199350,13.85004675,225.28,225.21,13.05706645]
[1733146199663,13.05706645,225.23,225.16,13.05706645]
[1733146199972,13.05706645,225.2,225.13,13.05706645]
[1733146200273,0.5284748,225.31,225.2,0.12549]
[1733146200571,0.5284748,225.31,225.2,1.01089547]